[Event "Late-Titled-Tuesday-Blitz-January-23-2024"]
[Site "Chess.com"]
[Date "2024.01.23"]
[Round "7"]
[White "Kazan28"]
[Black "Iuckyducky"]
[Result "1-0"]
[WhiteElo "2591"]
[BlackElo "2353"]
[TimeControl "180+1"]
[EndTime "15:15:20 PST"]
[Termination "Kazan28 won by checkmate"]

1. d4 {[%clk 0:03:00.9]} 1... d5 {[%clk 0:02:54.3]} 2. c4 {[%clk 0:02:59.5]}
2... c6 {[%clk 0:02:54.5]} 3. Nf3 {[%clk 0:02:59]} 3... Nf6 {[%clk 0:02:50.8]}
4. Nc3 {[%clk 0:02:57.6]} 4... dxc4 {[%clk 0:02:49.1]} 5. a4 {[%clk 0:02:54.6]}
5... Bf5 {[%clk 0:02:47.8]} 6. e3 {[%clk 0:02:55]} 6... Nbd7 {[%clk 0:02:45.1]}
7. Bxc4 {[%clk 0:02:55.4]} 7... e6 {[%clk 0:02:45.6]} 8. O-O {[%clk 0:02:55.8]}
8... Bd6 {[%clk 0:02:42.9]} 9. Qe2 {[%clk 0:02:56]} 9... Nb6 {[%clk 0:02:40.8]}
10. e4 {[%clk 0:02:52]} 10... Nxe4 {[%clk 0:02:06]} 11. Bb3 {[%clk 0:02:43]}
11... Nf6 {[%clk 0:01:51.8]} 12. Ne5 {[%clk 0:02:39.8]} 12... O-O {[%clk
0:01:50]} 13. Bg5 {[%clk 0:02:36.9]} 13... h6 {[%clk 0:01:49.7]} 14. Bh4 {[%clk
0:02:35.8]} 14... a5 {[%clk 0:01:46]} 15. Rfe1 {[%clk 0:02:33.8]} 15... Be7
{[%clk 0:01:38.4]} 16. Rad1 {[%clk 0:02:29.9]} 16... Nfd5 {[%clk 0:01:37.9]} 17.
Bg3 {[%clk 0:02:28.5]} 17... Bf6 {[%clk 0:01:27.9]} 18. Ne4 {[%clk 0:02:26.5]}
18... Qe7 {[%clk 0:01:04.5]} 19. Nc5 {[%clk 0:02:23.3]} 19... Rad8 {[%clk
0:01:03]} 20. h3 {[%clk 0:02:12.9]} 20... Nb4 {[%clk 0:00:58.1]} 21. Ne4 {[%clk
0:01:58.8]} 21... Bh4 {[%clk 0:00:53.3]} 22. Bf4 {[%clk 0:01:54]} 22... N6d5
{[%clk 0:00:38.5]} 23. Bh2 {[%clk 0:01:52.6]} 23... Kh7 {[%clk 0:00:21.4]} 24.
Ng3 {[%clk 0:01:48.9]} 24... Bg6 {[%clk 0:00:18.9]} 25. Nxg6 {[%clk 0:01:40.8]}
25... fxg6 {[%clk 0:00:18.1]} 26. Ne4 {[%clk 0:01:39.7]} 26... Bf6 {[%clk
0:00:07.9]} 27. Bc4 {[%clk 0:01:29.1]} 27... b6 {[%clk 0:00:06.3]} 28. Bb3
{[%clk 0:01:29.1]} 28... Rf7 {[%clk 0:00:05.7]} 29. Nd2 {[%clk 0:00:41.2]} 29...
Re8 {[%clk 0:00:04.8]} 30. Nf3 {[%clk 0:00:41.8]} 30... Bg5 {[%clk 0:00:03.9]}
31. Ne5 {[%clk 0:00:40.2]} 31... Rf5 {[%clk 0:00:03.9]} 32. Rf1 {[%clk
0:00:31.5]} 32... Nf4 {[%clk 0:00:04.1]} 33. Qe4 {[%clk 0:00:30.3]} 33... Ref8
{[%clk 0:00:03.7]} 34. Nxc6 {[%clk 0:00:23]} 34... Qb7 {[%clk 0:00:03.6]} 35.
Rc1 {[%clk 0:00:15.1]} 35... Nxc6 {[%clk 0:00:03]} 36. Rxc6 {[%clk 0:00:14]}
36... Ne2+ {[%clk 0:00:03.5]} 37. Kh1 {[%clk 0:00:13.8]} 37... Rxf2 {[%clk
0:00:04.1]} 38. Rxf2 {[%clk 0:00:13.6]} 38... Rxf2 {[%clk 0:00:05]} 39. Bc7
{[%clk 0:00:11.6]} 39... Rf1+ {[%clk 0:00:05.1]} 40. Kh2 {[%clk 0:00:11.5]}
40... Ng1 {[%clk 0:00:04.2]} 41. Rxe6 {[%clk 0:00:08.2]} 41... Qxe4 {[%clk
0:00:03.9]} 42. Rxe4 {[%clk 0:00:09.1]} 42... Rb1 {[%clk 0:00:04.2]} 43. Bf7
{[%clk 0:00:07.8]} 43... Ne2 {[%clk 0:00:04.3]} 44. Re6 {[%clk 0:00:06.3]} 44...
Nf4 {[%clk 0:00:04.8]} 45. Bxf4 {[%clk 0:00:06.1]} 45... Bxf4+ {[%clk
0:00:05.7]} 46. g3 {[%clk 0:00:05.9]} 46... Rxb2+ {[%clk 0:00:06.2]} 47. Kg1
{[%clk 0:00:06.1]} 47... Bxg3 {[%clk 0:00:06.6]} 48. Bxg6+ {[%clk 0:00:06.3]}
48... Kg8 {[%clk 0:00:07.2]} 49. Re8# {[%clk 0:00:07.2]} 1-0

[Event "Late-Titled-Tuesday-Blitz-January-23-2024"]
[Site "Chess.com"]
[Date "2024.01.23"]
[Round "7"]
[White "CarlosjPineror"]
[Black "Durarbayli"]
[Result "0-1"]
[WhiteElo "2607"]
[BlackElo "2856"]
[TimeControl "180+1"]
[EndTime "15:15:23 PST"]
[Termination "Durarbayli won by resignation"]

1. e4 {[%clk 0:03:00.2]} 1... e5 {[%clk 0:02:59.4]} 2. Nf3 {[%clk 0:02:59.7]}
2... Nc6 {[%clk 0:02:59.8]} 3. Bb5 {[%clk 0:02:59.4]} 3... a6 {[%clk 0:02:59.4]}
4. Ba4 {[%clk 0:02:59.2]} 4... Nge7 {[%clk 0:02:59.2]} 5. c3 {[%clk 0:02:58.2]}
5... g6 {[%clk 0:02:58.9]} 6. h4 {[%clk 0:02:57.8]} 6... Bg7 {[%clk 0:02:50]} 7.
h5 {[%clk 0:02:57.2]} 7... O-O {[%clk 0:02:49.9]} 8. d3 {[%clk 0:02:56.3]} 8...
d5 {[%clk 0:02:48.8]} 9. Nbd2 {[%clk 0:02:55]} 9... Bg4 {[%clk 0:02:42.7]} 10.
hxg6 {[%clk 0:02:31.9]} 10... hxg6 {[%clk 0:02:30.5]} 11. Qe2 {[%clk 0:02:31]}
11... Qd6 {[%clk 0:02:21.7]} 12. Nf1 {[%clk 0:02:22.7]} 12... d4 {[%clk
0:02:12.3]} 13. Bc2 {[%clk 0:02:13.7]} 13... Qc5 {[%clk 0:02:06.3]} 14. Bd2
{[%clk 0:02:04.9]} 14... dxc3 {[%clk 0:01:44]} 15. bxc3 {[%clk 0:02:03.5]} 15...
Nd4 {[%clk 0:01:31.4]} 16. cxd4 {[%clk 0:01:53]} 16... Qxc2 {[%clk 0:01:32.3]}
17. d5 {[%clk 0:01:41.5]} 17... c6 {[%clk 0:01:18.1]} 18. Bb4 {[%clk 0:01:26.9]}
18... Qxe2+ {[%clk 0:01:13.4]} 19. Kxe2 {[%clk 0:01:27.8]} 19... Nxd5 {[%clk
0:01:04.3]} 20. exd5 {[%clk 0:01:16.9]} 20... e4 {[%clk 0:01:05.2]} 21. dxe4
{[%clk 0:01:17.1]} 21... Bxa1 {[%clk 0:00:44.7]} 22. Bxf8 {[%clk 0:01:05.3]}
22... Rxf8 {[%clk 0:00:35.1]} 23. Ne3 {[%clk 0:01:04]} 23... Bxf3+ {[%clk
0:00:33.5]} 24. gxf3 {[%clk 0:01:03.5]} 24... Be5 {[%clk 0:00:34.4]} 25. dxc6
{[%clk 0:01:00.6]} 25... bxc6 {[%clk 0:00:35.3]} 26. Rc1 {[%clk 0:01:00.7]}
26... Rc8 {[%clk 0:00:32.1]} 27. Nd5 {[%clk 0:00:56.5]} 27... Kf8 {[%clk
0:00:16]} 28. Nb6 {[%clk 0:00:51.2]} 28... Rc7 {[%clk 0:00:15.7]} 29. Nc4 {[%clk
0:00:49.9]} 29... Bf4 {[%clk 0:00:13.1]} 30. Rb1 {[%clk 0:00:47.6]} 30... Rd7
{[%clk 0:00:09.7]} 31. Rb6 {[%clk 0:00:42.7]} 31... c5 {[%clk 0:00:10.2]} 32.
Rc6 {[%clk 0:00:40]} 32... Rb7 {[%clk 0:00:09.6]} 33. Rxc5 {[%clk 0:00:38.9]}
33... Rb1 {[%clk 0:00:06.2]} 34. Rc6 {[%clk 0:00:38.1]} 34... Rc1 {[%clk
0:00:05.8]} 35. Kd3 {[%clk 0:00:34.9]} 35... Rd1+ {[%clk 0:00:04]} 36. Kc2
{[%clk 0:00:33.9]} 36... Rf1 {[%clk 0:00:03.7]} 37. Rxa6 {[%clk 0:00:25.4]}
37... Rxf2+ {[%clk 0:00:04.3]} 38. Kd3 {[%clk 0:00:25.9]} 38... Rxf3+ {[%clk
0:00:04.9]} 39. Kd4 {[%clk 0:00:26.3]} 39... g5 {[%clk 0:00:04.6]} 40. e5 {[%clk
0:00:21.9]} 40... g4 {[%clk 0:00:04.3]} 41. Ke4 {[%clk 0:00:14.5]} 41... Rf1
{[%clk 0:00:03.3]} 42. Rf6 {[%clk 0:00:13.7]} 42... g3 {[%clk 0:00:03.9]} 43.
Ne3 {[%clk 0:00:09.3]} 43... Bxe3 {[%clk 0:00:04.2]} 44. Rxf1 {[%clk 0:00:09.2]}
44... g2 {[%clk 0:00:04.8]} 45. Re1 {[%clk 0:00:08.8]} 45... g1=Q {[%clk
0:00:05.7]} 46. Rxg1 {[%clk 0:00:09.1]} 46... Bxg1 {[%clk 0:00:06.6]} 47. a4
{[%clk 0:00:07.9]} 47... Ke7 {[%clk 0:00:07]} 48. Kf5 {[%clk 0:00:08.2]} 48...
Ba7 {[%clk 0:00:06.8]} 49. Kf4 {[%clk 0:00:07.5]} 49... Ke6 {[%clk 0:00:06.7]}
0-1

[Event "Late-Titled-Tuesday-Blitz-January-23-2024"]
[Site "Chess.com"]
[Date "2024.01.23"]
[Round "7"]
[White "kingofthenil"]
[Black "WPWPWP-2015"]
[Result "1-0"]
[WhiteElo "2690"]
[BlackElo "2497"]
[TimeControl "180+1"]
[EndTime "15:15:26 PST"]
[Termination "kingofthenil won by checkmate"]

1. e4 {[%clk 0:02:51.9]} 1... c5 {[%clk 0:02:56]} 2. d3 {[%clk 0:02:51.8]} 2...
e5 {[%clk 0:02:54.6]} 3. g3 {[%clk 0:02:52.7]} 3... Nc6 {[%clk 0:02:54]} 4. Bg2
{[%clk 0:02:53]} 4... Nf6 {[%clk 0:02:54.3]} 5. Nf3 {[%clk 0:02:52.7]} 5... Be7
{[%clk 0:02:54.1]} 6. O-O {[%clk 0:02:52.9]} 6... O-O {[%clk 0:02:54.1]} 7. Re1
{[%clk 0:02:53.8]} 7... d6 {[%clk 0:02:54.2]} 8. h3 {[%clk 0:02:53.7]} 8... h6
{[%clk 0:02:53.3]} 9. c3 {[%clk 0:02:53.8]} 9... Be6 {[%clk 0:02:52]} 10. a4
{[%clk 0:02:53.3]} 10... Qd7 {[%clk 0:02:50.3]} 11. Na3 {[%clk 0:02:43.6]} 11...
Bxh3 {[%clk 0:02:48.4]} 12. Bh1 {[%clk 0:02:44.2]} 12... Bg4 {[%clk 0:02:46.9]}
13. Qb3 {[%clk 0:02:42.3]} 13... Be6 {[%clk 0:02:42.6]} 14. Qc2 {[%clk
0:02:42.2]} 14... Ng4 {[%clk 0:02:38.2]} 15. Nc4 {[%clk 0:02:39.6]} 15... f5
{[%clk 0:02:35.9]} 16. exf5 {[%clk 0:02:31.9]} 16... Rxf5 {[%clk 0:02:35.5]} 17.
Ne3 {[%clk 0:02:30.4]} 17... Nxe3 {[%clk 0:02:34.7]} 18. Bxe3 {[%clk 0:02:31.3]}
18... Raf8 {[%clk 0:02:33.9]} 19. Nh2 {[%clk 0:02:23.4]} 19... R5f7 {[%clk
0:02:19]} 20. c4 {[%clk 0:02:15.6]} 20... Nb4 {[%clk 0:02:13.8]} 21. Qe2 {[%clk
0:02:13.7]} 21... Bg5 {[%clk 0:01:55.8]} 22. Rf1 {[%clk 0:02:00.3]} 22... Bh3
{[%clk 0:01:47.1]} 23. Bxg5 {[%clk 0:02:00.2]} 23... hxg5 {[%clk 0:01:38.3]} 24.
Qh5 {[%clk 0:01:55.7]} 24... Bf5 {[%clk 0:01:18.7]} 25. Rad1 {[%clk 0:01:46.7]}
25... Qe7 {[%clk 0:01:05.2]} 26. Nf3 {[%clk 0:01:44.1]} 26... g6 {[%clk
0:00:51.7]} 27. Qxg5 {[%clk 0:01:40.2]} 27... Bxd3 {[%clk 0:00:43.9]} 28. Rxd3
{[%clk 0:01:35]} 28... Qxg5 {[%clk 0:00:43.1]} 29. Nxg5 {[%clk 0:01:35.9]} 29...
Nxd3 {[%clk 0:00:39.5]} 30. Bd5 {[%clk 0:01:27.9]} 30... Kg7 {[%clk 0:00:27.9]}
31. Bxf7 {[%clk 0:01:22]} 31... Kh6 {[%clk 0:00:24.2]} 32. f4 {[%clk 0:01:16.6]}
32... exf4 {[%clk 0:00:16.1]} 33. gxf4 {[%clk 0:01:17.5]} 33... Nxf4 {[%clk
0:00:15.7]} 34. Rxf4 {[%clk 0:01:17.2]} 34... Kxg5 {[%clk 0:00:16.1]} 35. Rf3
{[%clk 0:01:17.8]} 35... b6 {[%clk 0:00:14.8]} 36. Kg2 {[%clk 0:01:14.4]} 36...
Rh8 {[%clk 0:00:13.6]} 37. Rg3+ {[%clk 0:01:13.3]} 37... Kf6 {[%clk 0:00:13.8]}
38. Bxg6 {[%clk 0:01:13.9]} 38... Rg8 {[%clk 0:00:13.1]} 39. Bd3 {[%clk
0:01:08.6]} 39... Rh8 {[%clk 0:00:08.5]} 40. Kf3 {[%clk 0:01:07.6]} 40... Ke5
{[%clk 0:00:08.4]} 41. Ke3 {[%clk 0:01:07.9]} 41... Rh2 {[%clk 0:00:07.4]} 42.
Rg5+ {[%clk 0:01:05.7]} 42... Ke6 {[%clk 0:00:06.8]} 43. Rg6+ {[%clk 0:01:00.7]}
43... Ke5 {[%clk 0:00:07.1]} 44. Be2 {[%clk 0:00:59.4]} 44... Rh3+ {[%clk
0:00:06.6]} 45. Bf3 {[%clk 0:00:59.9]} 45... Rh2 {[%clk 0:00:06.9]} 46. Rg5+
{[%clk 0:00:58.2]} 46... Kf6 {[%clk 0:00:06.7]} 47. Rd5 {[%clk 0:00:58.3]} 47...
Ke7 {[%clk 0:00:07.2]} 48. Rd2 {[%clk 0:00:58.2]} 48... Rh4 {[%clk 0:00:07.5]}
49. Bd5 {[%clk 0:00:58.1]} 49... Rh3+ {[%clk 0:00:07.1]} 50. Ke4 {[%clk
0:00:56.7]} 50... Rh4+ {[%clk 0:00:07.4]} 51. Kf5 {[%clk 0:00:57]} 51... Rh5+
{[%clk 0:00:07.7]} 52. Kg6 {[%clk 0:00:57.5]} 52... Rh3 {[%clk 0:00:07.2]} 53.
Re2+ {[%clk 0:00:57.8]} 53... Kd8 {[%clk 0:00:07.1]} 54. Kf7 {[%clk 0:00:57.3]}
54... Rh6 {[%clk 0:00:04.7]} 55. Re8+ {[%clk 0:00:56.5]} 55... Kd7 {[%clk
0:00:03.8]} 56. Re7+ {[%clk 0:00:57.4]} 56... Kd8 {[%clk 0:00:04]} 57. Be4
{[%clk 0:00:55.8]} 57... Rh4 {[%clk 0:00:03.6]} 58. Re8+ {[%clk 0:00:51.9]}
58... Kc7 {[%clk 0:00:03]} 59. Bd5 {[%clk 0:00:51]} 59... Rh7+ {[%clk
0:00:02.5]} 60. Kg6 {[%clk 0:00:51.2]} 60... Rh2 {[%clk 0:00:02.1]} 61. Re7+
{[%clk 0:00:49.4]} 61... Kd8 {[%clk 0:00:02.5]} 62. Rxa7 {[%clk 0:00:49.3]}
62... Rxb2 {[%clk 0:00:02.6]} 63. Kf6 {[%clk 0:00:49.7]} 63... Re2 {[%clk
0:00:02.9]} 64. Rb7 {[%clk 0:00:49]} 64... Ra2 {[%clk 0:00:02.6]} 65. Ke6 {[%clk
0:00:48.7]} 65... Rxa4 {[%clk 0:00:01.7]} 66. Kxd6 {[%clk 0:00:49.2]} 66... Kc8
{[%clk 0:00:02]} 67. Rxb6 {[%clk 0:00:49.6]} 67... Ra7 {[%clk 0:00:02.2]} 68.
Be6+ {[%clk 0:00:49.7]} 68... Kd8 {[%clk 0:00:02.5]} 69. Rb8# {[%clk 0:00:50.3]}
1-0

[Event "Late-Titled-Tuesday-Blitz-January-23-2024"]
[Site "Chess.com"]
[Date "2024.01.23"]
[Round "7"]
[White "angelgab3"]
[Black "Hrant_ChessMood"]
[Result "0-1"]
[WhiteElo "2690"]
[BlackElo "2916"]
[TimeControl "180+1"]
[EndTime "15:15:28 PST"]
[Termination "Hrant_ChessMood won by resignation"]

1. e4 {[%clk 0:03:00.9]} 1... c6 {[%clk 0:03:00.4]} 2. d3 {[%clk 0:02:57.1]}
2... d5 {[%clk 0:03:01.3]} 3. Nd2 {[%clk 0:02:58]} 3... g6 {[%clk 0:03:00.3]} 4.
Ngf3 {[%clk 0:02:58.4]} 4... Bg7 {[%clk 0:03:00.8]} 5. Be2 {[%clk 0:02:59.2]}
5... e5 {[%clk 0:03:00.7]} 6. O-O {[%clk 0:02:59.6]} 6... Ne7 {[%clk 0:03:01.2]}
7. b4 {[%clk 0:03:00.2]} 7... O-O {[%clk 0:02:59.9]} 8. Bb2 {[%clk 0:03:00.3]}
8... Nd7 {[%clk 0:02:59.4]} 9. a4 {[%clk 0:03:00.9]} 9... a5 {[%clk 0:02:45.8]}
10. bxa5 {[%clk 0:03:00.8]} 10... Qxa5 {[%clk 0:02:43.6]} 11. Nb3 {[%clk
0:03:00.9]} 11... Qc7 {[%clk 0:02:43.9]} 12. a5 {[%clk 0:03:01.3]} 12... Rd8
{[%clk 0:02:40.4]} 13. Re1 {[%clk 0:03:01.4]} 13... dxe4 {[%clk 0:02:33.2]} 14.
dxe4 {[%clk 0:03:02.3]} 14... Nc5 {[%clk 0:02:30.3]} 15. Qc1 {[%clk 0:02:58.4]}
15... Nxb3 {[%clk 0:02:22]} 16. cxb3 {[%clk 0:02:59.3]} 16... Rxa5 {[%clk
0:02:22.6]} 17. Bc4 {[%clk 0:02:50.6]} 17... Rxa1 {[%clk 0:02:13]} 18. Qxa1
{[%clk 0:02:51.5]} 18... b5 {[%clk 0:02:13.6]} 19. Bf1 {[%clk 0:02:30.2]} 19...
f6 {[%clk 0:02:13]} 20. Rc1 {[%clk 0:02:30.8]} 20... Be6 {[%clk 0:02:12.5]} 21.
Bxb5 {[%clk 0:02:28.8]} 21... Bxb3 {[%clk 0:02:12.5]} 22. Ba3 {[%clk 0:02:25.7]}
22... Bh6 {[%clk 0:01:47.1]} 23. Bc4+ {[%clk 0:02:03.7]} 23... Bxc4 {[%clk
0:01:45.7]} 24. Rxc4 {[%clk 0:01:59.6]} 24... Qa5 {[%clk 0:01:37.6]} 25. Rc3
{[%clk 0:00:56]} 25... Bd2 {[%clk 0:00:45.6]} 26. Rb3 {[%clk 0:00:19.7]} 26...
Qa4 {[%clk 0:00:39.5]} 27. Qa2 {[%clk 0:00:18.5]} 27... Ba5 {[%clk 0:00:15.7]}
28. h4 {[%clk 0:00:11.9]} 28... Kh8 {[%clk 0:00:10.4]} 29. Qc2 {[%clk
0:00:10.4]} 29... Ng8 {[%clk 0:00:08.9]} 30. Bc5 {[%clk 0:00:08.2]} 30... Rb8
{[%clk 0:00:04.2]} 31. Rxb8 {[%clk 0:00:03.6]} 31... Qxc2 {[%clk 0:00:03.9]} 32.
Be7 {[%clk 0:00:04]} 32... Kg7 {[%clk 0:00:03]} 33. Bf8+ {[%clk 0:00:03.1]}
33... Kf7 {[%clk 0:00:02.8]} 34. h5 {[%clk 0:00:03.7]} 34... Qc1+ {[%clk
0:00:03.1]} 35. Kh2 {[%clk 0:00:03.8]} 35... Qf4+ {[%clk 0:00:04]} 36. Kg1
{[%clk 0:00:04.5]} 36... Qc1+ {[%clk 0:00:04.3]} 37. Kh2 {[%clk 0:00:04.5]}
37... Qf4+ {[%clk 0:00:05.2]} 38. Kg1 {[%clk 0:00:05.2]} 38... Qxe4 {[%clk
0:00:06.1]} 39. h6 {[%clk 0:00:04.8]} 39... Bc7 {[%clk 0:00:04.6]} 40. Rc8
{[%clk 0:00:04.2]} 40... Qb1+ {[%clk 0:00:03.3]} 41. Kh2 {[%clk 0:00:04.2]}
41... Qb7 {[%clk 0:00:04.2]} 0-1

[Event "Late-Titled-Tuesday-Blitz-January-23-2024"]
[Site "Chess.com"]
[Date "2024.01.23"]
[Round "7"]
[White "vladislavkovalev"]
[Black "jk13"]
[Result "1-0"]
[WhiteElo "2866"]
[BlackElo "2655"]
[TimeControl "180+1"]
[EndTime "15:15:31 PST"]
[Termination "vladislavkovalev won by resignation"]

1. e4 {[%clk 0:03:00.9]} 1... e5 {[%clk 0:02:59.6]} 2. Nf3 {[%clk 0:03:01.5]}
2... Nc6 {[%clk 0:03:00.2]} 3. Bb5 {[%clk 0:03:02.1]} 3... a6 {[%clk 0:03:00.2]}
4. Ba4 {[%clk 0:03:02.8]} 4... Nf6 {[%clk 0:03:00.8]} 5. O-O {[%clk 0:03:03.5]}
5... b5 {[%clk 0:03:01.2]} 6. Bb3 {[%clk 0:03:03.8]} 6... Bc5 {[%clk 0:03:02.1]}
7. a4 {[%clk 0:03:03.2]} 7... Rb8 {[%clk 0:03:02.6]} 8. c3 {[%clk 0:03:03.6]}
8... d6 {[%clk 0:03:02]} 9. d4 {[%clk 0:03:04]} 9... Bb6 {[%clk 0:03:02.5]} 10.
a5 {[%clk 0:03:04.7]} 10... Ba7 {[%clk 0:03:02.4]} 11. h3 {[%clk 0:03:05.4]}
11... O-O {[%clk 0:03:02.1]} 12. Be3 {[%clk 0:03:05.7]} 12... Ra8 {[%clk
0:03:02.2]} 13. Re1 {[%clk 0:03:00.6]} 13... h6 {[%clk 0:03:01.2]} 14. Nbd2
{[%clk 0:02:59.9]} 14... Re8 {[%clk 0:03:01.5]} 15. Qc2 {[%clk 0:02:47.8]} 15...
Bb7 {[%clk 0:03:01.5]} 16. Ba2 {[%clk 0:02:32.9]} 16... Qd7 {[%clk 0:02:35.1]}
17. dxe5 {[%clk 0:02:29.4]} 17... Bxe3 {[%clk 0:02:29.1]} 18. exf6 {[%clk
0:02:18.1]} 18... Bxd2 {[%clk 0:02:27.5]} 19. Qxd2 {[%clk 0:02:16.7]} 19... Ne5
{[%clk 0:02:08.1]} 20. Nd4 {[%clk 0:02:11.1]} 20... d5 {[%clk 0:01:12.2]} 21.
fxg7 {[%clk 0:02:04.6]} 21... Kh7 {[%clk 0:00:50.4]} 22. Nf5 {[%clk 0:01:46.7]}
22... Re6 {[%clk 0:00:49.9]} 23. f4 {[%clk 0:01:21.3]} 23... Nc4 {[%clk
0:00:22.4]} 24. Bxc4 {[%clk 0:01:20.4]} 24... bxc4 {[%clk 0:00:23.3]} 25. Rad1
{[%clk 0:01:02.3]} 25... Rae8 {[%clk 0:00:19.1]} 26. e5 {[%clk 0:00:29.8]} 26...
Rg6 {[%clk 0:00:19.2]} 27. Nh4 {[%clk 0:00:30.5]} 27... Rxg7 {[%clk 0:00:18.6]}
28. Qf2 {[%clk 0:00:31.2]} 28... Qd8 {[%clk 0:00:16.7]} 29. Kh2 {[%clk
0:00:23.7]} 29... c6 {[%clk 0:00:13.5]} 30. Nf5 {[%clk 0:00:22.8]} 30... Rg6
{[%clk 0:00:13.5]} 31. Nd6 {[%clk 0:00:21.2]} 31... Re7 {[%clk 0:00:12.8]} 32.
f5 {[%clk 0:00:18.3]} 32... Rg5 {[%clk 0:00:07.9]} 33. f6 {[%clk 0:00:18]} 33...
Rd7 {[%clk 0:00:06.2]} 34. h4 {[%clk 0:00:14]} 34... Rg6 {[%clk 0:00:05.3]} 35.
Nxb7 {[%clk 0:00:11.2]} 35... Rxb7 {[%clk 0:00:05.4]} 36. Qf5 {[%clk 0:00:08]}
36... h5 {[%clk 0:00:05.3]} 37. Qxh5+ {[%clk 0:00:07.3]} 37... Rh6 {[%clk
0:00:06.1]} 38. Qf5+ {[%clk 0:00:07.8]} 38... Kh8 {[%clk 0:00:06.6]} 39. Rd4
{[%clk 0:00:07.6]} 39... Qg8 {[%clk 0:00:06.8]} 40. Rg4 {[%clk 0:00:07.9]} 40...
Qf8 {[%clk 0:00:07.1]} 41. Re3 {[%clk 0:00:07.2]} 41... Rxb2 {[%clk 0:00:07.2]}
42. Reg3 {[%clk 0:00:07.8]} 42... Rb8 {[%clk 0:00:07.1]} 43. Qg5 {[%clk
0:00:06.2]} 43... Rc8 {[%clk 0:00:07]} 44. h5 {[%clk 0:00:05.6]} 44... Re8
{[%clk 0:00:06.6]} 45. Kg1 {[%clk 0:00:05.8]} 45... Rb8 {[%clk 0:00:06.3]} 46.
Qf4 {[%clk 0:00:06.3]} 46... Rb1+ {[%clk 0:00:06]} 47. Kf2 {[%clk 0:00:05.5]}
47... Rb2+ {[%clk 0:00:06.6]} 48. Kf3 {[%clk 0:00:05.1]} 48... Rc2 {[%clk
0:00:06.4]} 49. Rg8+ {[%clk 0:00:04.7]} 49... Kh7 {[%clk 0:00:05.9]} 50. R3g7+
{[%clk 0:00:04.3]} 50... Qxg7 {[%clk 0:00:05.5]} 51. Rxg7+ {[%clk 0:00:05.2]}
1-0

[Event "Late-Titled-Tuesday-Blitz-January-23-2024"]
[Site "Chess.com"]
[Date "2024.01.23"]
[Round "7"]
[White "SanchezKelvin"]
[Black "sofaceindisguise"]
[Result "1-0"]
[WhiteElo "2575"]
[BlackElo "2756"]
[TimeControl "180+1"]
[EndTime "15:15:34 PST"]
[Termination "SanchezKelvin won on time"]

1. e4 {[%clk 0:03:00.9]} 1... e5 {[%clk 0:02:59.2]} 2. Nf3 {[%clk 0:03:00.5]}
2... Nc6 {[%clk 0:02:59.7]} 3. Bb5 {[%clk 0:02:59.6]} 3... a6 {[%clk 0:02:59.8]}
4. Ba4 {[%clk 0:02:59.8]} 4... Nf6 {[%clk 0:03:00]} 5. O-O {[%clk 0:02:57]} 5...
Be7 {[%clk 0:02:59.9]} 6. Re1 {[%clk 0:02:54.8]} 6... b5 {[%clk 0:03:00.3]} 7.
Bb3 {[%clk 0:02:53.9]} 7... O-O {[%clk 0:03:00.8]} 8. a4 {[%clk 0:02:51.9]} 8...
Rb8 {[%clk 0:02:53.9]} 9. axb5 {[%clk 0:02:38]} 9... axb5 {[%clk 0:02:53.8]} 10.
Nc3 {[%clk 0:02:38.4]} 10... d6 {[%clk 0:02:48.2]} 11. h3 {[%clk 0:02:37.9]}
11... Be6 {[%clk 0:02:44.9]} 12. Nd5 {[%clk 0:02:35]} 12... Nd4 {[%clk
0:02:26.2]} 13. Nxd4 {[%clk 0:02:29.7]} 13... exd4 {[%clk 0:02:27.1]} 14. d3
{[%clk 0:02:27.8]} 14... c6 {[%clk 0:02:17.8]} 15. Nxe7+ {[%clk 0:02:18.1]}
15... Qxe7 {[%clk 0:02:18.7]} 16. Bg5 {[%clk 0:02:17.1]} 16... Bxb3 {[%clk
0:02:17.3]} 17. cxb3 {[%clk 0:02:16.6]} 17... Qe6 {[%clk 0:02:12.6]} 18. b4
{[%clk 0:02:12.9]} 18... Ra8 {[%clk 0:02:06]} 19. Qc2 {[%clk 0:02:11.3]} 19...
Rac8 {[%clk 0:01:21.7]} 20. f4 {[%clk 0:02:01.9]} 20... c5 {[%clk 0:01:18.6]}
21. bxc5 {[%clk 0:01:59.7]} 21... dxc5 {[%clk 0:01:18]} 22. f5 {[%clk
0:01:43.2]} 22... Qb6 {[%clk 0:01:15.4]} 23. Qf2 {[%clk 0:01:36.7]} 23... c4
{[%clk 0:01:10.6]} 24. Bxf6 {[%clk 0:01:31.2]} 24... gxf6 {[%clk 0:01:06.5]} 25.
e5 {[%clk 0:01:14.2]} 25... fxe5 {[%clk 0:01:04.8]} 26. Qg3+ {[%clk 0:01:14.2]}
26... Kh8 {[%clk 0:01:03.4]} 27. Qxe5+ {[%clk 0:01:02.8]} 27... f6 {[%clk
0:01:03.2]} 28. Qd5 {[%clk 0:00:54.5]} 28... Rcd8 {[%clk 0:01:00.9]} 29. Qe6
{[%clk 0:00:40.7]} 29... Qxe6 {[%clk 0:00:56.7]} 30. Rxe6 {[%clk 0:00:41.6]}
30... c3 {[%clk 0:00:50]} 31. Rb6 {[%clk 0:00:41.2]} 31... Rb8 {[%clk 0:00:48]}
32. Rc6 {[%clk 0:00:38.2]} 32... Rfc8 {[%clk 0:00:46.6]} 33. Rxc8+ {[%clk
0:00:34.6]} 33... Rxc8 {[%clk 0:00:46.8]} 34. b4 {[%clk 0:00:35]} 34... h5
{[%clk 0:00:36.3]} 35. Kf2 {[%clk 0:00:33.9]} 35... Kg7 {[%clk 0:00:36.5]} 36.
Ke2 {[%clk 0:00:33.9]} 36... Kh6 {[%clk 0:00:36.7]} 37. h4 {[%clk 0:00:33.9]}
37... Re8+ {[%clk 0:00:34.2]} 38. Kf2 {[%clk 0:00:30.2]} 38... Re5 {[%clk
0:00:32.4]} 39. Ra6 {[%clk 0:00:26.5]} 39... Rxf5+ {[%clk 0:00:32.5]} 40. Ke2
{[%clk 0:00:26.9]} 40... Kg6 {[%clk 0:00:32.7]} 41. Rd6 {[%clk 0:00:25.6]} 41...
Re5+ {[%clk 0:00:32.2]} 42. Kd1 {[%clk 0:00:24.8]} 42... Re3 {[%clk 0:00:08.7]}
43. Rxd4 {[%clk 0:00:23.9]} 43... Rg3 {[%clk 0:00:09.1]} 44. Kc2 {[%clk
0:00:24.4]} 44... Rxg2+ {[%clk 0:00:08.4]} 45. Kxc3 {[%clk 0:00:25]} 45... f5
{[%clk 0:00:06.3]} 46. Rd6+ {[%clk 0:00:24.1]} 46... Kf7 {[%clk 0:00:06.9]} 47.
Rd5 {[%clk 0:00:24.7]} 47... Ke6 {[%clk 0:00:07.1]} 48. Rxb5 {[%clk 0:00:24.9]}
48... f4 {[%clk 0:00:07.7]} 49. Kd4 {[%clk 0:00:19.1]} 49... Re2 {[%clk
0:00:01.3]} 50. Rxh5 {[%clk 0:00:10.6]} 50... f3 {[%clk 0:00:01.6]} 51. Rh8
{[%clk 0:00:11.3]} 1-0